bitfinex/quotes_BTCUSD_20251021
["timestamp","ask_amount","ask_price","bid_price","bid_amount"]
[1761040327002,3.18523663,107970.0,107960.0,0.18635178]
[1761040327222,3.59377977,107970.0,107960.0,0.18635178]
[1761040327654,3.18523663,107970.0,107960.0,0.18635178]
[1761040329807,0.60830508,107980.0,107960.0,0.21420536]
[1761040330006,3.18523663,107970.0,107960.0,0.21520536]
[1761040330214,0.18523663,107970.0,107960.0,0.21520536]
[1761040331469,0.60830508,107980.0,107960.0,0.21520536]
[1761040331675,3.0,107970.0,107960.0,0.21520536]
[1761040332171,0.18523663,107970.0,107960.0,0.21520536]
[1761040332628,3.34,107980.0,107970.0,0.18523663]
[1761040332848,0.02374267,107990.0,107980.0,0.18521948]
[1761040333090,0.548945,107990.0,107980.0,0.18521948]
[1761040333300,0.548945,107990.0,107970.0,0.18523663]
[1761040333512,0.548945,107990.0,107970.0,0.61230343]
[1761040333730,0.02374267,107990.0,107980.0,0.59376262]
[1761040333950,0.02374267,107990.0,107980.0,0.62161067]
[1761040335677,0.208945,107990.0,107980.0,0.21306753]
[1761040335880,0.02374267,107990.0,107980.0,0.62161067]
[1761040336356,0.208945,107990.0,107980.0,0.62161067]
[1761040336549,0.02374267,107990.0,107980.0,0.62161067]
[1761040336962,0.02374267,107990.0,107980.0,0.62261067]
[1761040337316,0.02374267,107990.0,107980.0,0.21406753]
[1761040337524,0.02374267,107990.0,107980.0,0.62261067]
[1761040339055,0.02374267,107990.0,107980.0,0.21406753]
[1761040339261,0.02374267,107990.0,107980.0,0.18621948]
[1761040342471,0.208945,107990.0,107980.0,0.18621948]
[1761040343088,0.02374267,107990.0,107980.0,0.18621948]
[1761040343741,0.208945,107990.0,107980.0,0.18621948]
[1761040343956,0.61748814,107990.0,107980.0,0.18621948]
[1761040344713,0.208945,107990.0,107980.0,0.001]
[1761040344931,0.61748814,107990.0,107980.0,0.18621948]
[1761040349646,0.208945,107990.0,107980.0,0.18621948]
[1761040354199,0.208945,107990.0,107980.0,0.59476262]
[1761040358628,0.02374267,107990.0,107980.0,0.59476262]
[1761040369189,0.208945,107990.0,107980.0,0.59476262]
[1761040369592,0.02374267,107990.0,107980.0,0.59476262]
[1761040369872,0.208945,107990.0,107980.0,0.18621948]
[1761040370072,0.208945,107990.0,107980.0,0.59476262]
[1761040370276,0.02374267,107990.0,107980.0,0.59476262]
[1761040370486,0.208945,107990.0,107980.0,0.59476262]
[1761040370859,0.02374267,107990.0,107980.0,0.59476262]
[1761040373740,0.208945,107990.0,107980.0,0.59476262]
[1761040373918,0.02374267,107990.0,107980.0,0.59476262]
[1761040374677,0.02374267,107990.0,107980.0,0.18621948]
[1761040379125,0.02374267,107990.0,107980.0,0.59441891]
[1761040380889,0.02374267,107990.0,107980.0,0.18621948]
[1761040381498,0.02374267,107990.0,107980.0,0.59441891]
[1761040384118,0.02374267,107990.0,107980.0,0.18621948]
[1761040387655,0.02374267,107990.0,107980.0,0.59441891]
[1761040389023,0.02374267,107990.0,107980.0,0.18621948]
[1761040389422,0.208945,107990.0,107980.0,0.18621948]
[1761040389632,0.02374267,107990.0,107980.0,0.18621948]
[1761040390980,0.208945,107990.0,107980.0,0.001]
[1761040391193,0.208945,107990.0,107980.0,0.18621948]
[1761040391841,0.208945,107990.0,107980.0,0.001]
[1761040392072,3.95714443,107990.0,107980.0,0.001]
[1761040392296,4.17794457,107990.0,107980.0,0.001]
[1761040392776,4.16341907,107990.0,107980.0,0.001]
[1761040394166,3.52523663,107970.0,107960.0,0.00109799]
[1761040395513,3.52523663,107970.0,107960.0,0.00209799]
[1761040396132,3.52523663,107970.0,107960.0,0.18735178]
[1761040399406,3.52523663,107970.0,107960.0,0.00209799]
[1761040399627,3.52523663,107970.0,107960.0,0.18735178]
[1761040401790,3.34,107970.0,107960.0,0.18735178]
[1761040401974,3.52523663,107970.0,107960.0,0.18735178]
[1761040404263,3.18523663,107970.0,107960.0,0.18735178]
[1761040404472,3.18523663,107970.0,107960.0,0.00209799]
[1761040404814,3.18523663,107970.0,107960.0,0.18735178]
[1761040409152,3.52523663,107970.0,107960.0,0.18735178]
[1761040428055,3.52523663,107970.0,107960.0,0.00209799]
[1761040428278,3.52523663,107970.0,107960.0,0.18735178]
[1761040429848,3.34,107970.0,107960.0,0.18735178]
[1761040430321,0.34,107970.0,107960.0,0.59555121]
[1761040430563,3.03826976,107990.0,107980.0,0.18521948]
[1761040430841,0.02374267,107990.0,107980.0,0.59341891]
[1761040431072,0.02374267,107990.0,107980.0,0.18521948]
[1761040431073,0.36374267,107990.0,107980.0,0.18521948]
[1761040431298,0.02374267,107990.0,107980.0,0.18521948]
[1761040431757,0.36374267,107990.0,107980.0,0.18521948]
[1761040432630,0.36374267,107990.0,107980.0,0.18621948]
[1761040439428,0.36374267,107990.0,107980.0,0.59444573]
[1761040440058,0.36374267,107990.0,107980.0,0.18621948]
[1761040442006,0.36374267,107990.0,107980.0,0.59444573]
[1761040442261,0.02374267,107990.0,107980.0,0.59444573]
[1761040442699,0.02374267,107990.0,107980.0,1.00267198]
[1761040442906,0.02374267,107990.0,107980.0,0.59444573]
[1761040444434,0.02374267,107990.0,107980.0,0.68426474]
[1761040445269,0.00040372,107990.0,107980.0,1.12033656]
[1761040446195,0.00040372,107990.0,107980.0,0.71211031]
[1761040449259,0.00040372,107990.0,107980.0,1.12033656]
[1761040451615,0.00040372,107990.0,107980.0,0.71211031]
[1761040455169,0.00040372,107990.0,107980.0,1.12033656]
[1761040457937,0.03837757,108000.0,107990.0,0.18520233]
[1761040458163,0.6030567,108010.0,107990.0,0.61194881]
[1761040458367,3.0,108000.0,107990.0,0.59342858]
[1761040460199,3.0,108000.0,107990.0,0.68324759]
[1761040460408,3.03248675,108000.0,107990.0,0.68424759]
[1761040460629,0.03248675,108000.0,107990.0,0.68424759]
[1761040461113,0.18556938,108010.0,108000.0,0.18518518]
[1761040464961,0.21830075,108010.0,108000.0,0.18518518]
[1761040465369,0.21900866,108010.0,108000.0,0.18518518]
[1761040466404,0.03383928,108010.0,108000.0,0.18518518]
[1761040466799,0.03383928,108010.0,108000.0,0.18618518]
[1761040467006,0.03383928,108010.0,108000.0,0.59441143]
[1761040469586,0.03383928,108010.0,108000.0,0.18618518]
[1761040471665,0.21900731,108010.0,108000.0,0.18618518]
[1761040471878,0.03383928,108010.0,108000.0,0.18618518]
[1761040472505,3.0,108010.0,108000.0,0.18618518]
[1761040473104,0.03263702,108010.0,108000.0,0.18618518]
[1761040473539,3.812843,108020.0,108010.0,0.18516803]
[1761040473958,3.0,108010.0,108000.0,0.18618518]
[1761040474562,3.0,108010.0,108000.0,0.18518518]
[1761040475654,3.0,108010.0,108000.0,0.20370369]
[1761040476365,0.03279059,108010.0,108000.0,0.20370369]
[1761040476784,3.0,108010.0,108000.0,0.20370369]
[1761040477002,3.59339428,108010.0,108000.0,0.001]
[1761040477891,3.93339428,108010.0,108000.0,0.001]
[1761040478114,4.37377444,108010.0,108000.0,0.001]
[1761040478323,4.46359345,108010.0,108000.0,0.001]
[1761040478767,4.49977573,108010.0,108000.0,0.001]
[1761040479397,4.90800198,108010.0,108000.0,0.001]
[1761040479610,4.49977573,108010.0,108000.0,0.001]
[1761040479820,4.52762693,108010.0,108000.0,0.001]
[1761040480095,3.18520233,107990.0,107980.0,0.0014517]
[1761040480300,4.00165483,107990.0,107980.0,0.0014517]
[1761040486187,4.09147384,107990.0,107980.0,0.0014517]
[1761040487735,3.68324759,107990.0,107980.0,0.0014517]
[1761040487990,4.09147384,107990.0,107980.0,0.0014517]
[1761040496822,3.68341207,107990.0,107980.0,0.0014517]
[1761040500430,3.49457215,107990.0,107980.0,0.0014517]
[1761040500662,3.67977448,107990.0,107980.0,0.0014517]
[1761040502911,2.99636241,107990.0,107980.0,0.18667118]
[1761040504980,2.99636241,107990.0,107980.0,0.21451856]
[1761040505656,2.99636241,107990.0,107980.0,0.21551856]
[1761040519822,2.99636241,107990.0,107980.0,0.18767118]
[1761040525548,0.5935803,108000.0,107990.0,0.18520233]
[1761040525549,2.99636241,108000.0,107990.0,0.18520233]
[1761040525758,0.04667864,108010.0,108000.0,0.18518518]
[1761040525977,0.37215391,108010.0,108000.0,0.18518518]
[1761040526475,0.03215391,108010.0,108000.0,0.18518518]
[1761040526687,3.0,108000.0,107990.0,0.30286427]
[1761040528524,3.0,108000.0,107990.0,0.30386427]
[1761040529172,3.0,108000.0,107990.0,0.30486427]
[1761040548644,2.81031152,108000.0,107990.0,0.30486427]
[1761040548852,3.97081845,108010.0,108000.0,0.18518518]
[1761040551289,3.97086812,108010.0,108000.0,0.18518518]
[1761040551700,3.97086812,108010.0,108000.0,0.18618518]
[1761040554223,3.37730885,108010.0,108000.0,0.18618518]
[1761040554421,3.56247688,108010.0,108000.0,0.18618518]
[1761040554621,3.97086761,108010.0,108000.0,0.18618518]
[1761040558707,3.97061364,108010.0,108000.0,0.18618518]
[1761040566789,3.97061364,108010.0,108000.0,0.001]
[1761040567832,4.46856941,108010.0,108000.0,0.001]
[1761040568239,4.48309353,108010.0,108000.0,0.001]
[1761040568438,4.3787504,108010.0,108000.0,0.001]
[1761040568643,4.46856941,108010.0,108000.0,0.001]
[1761040569759,2.98009049,107990.0,107980.0,0.19448021]
[1761040569952,3.59333909,107990.0,107980.0,0.19448021]
[1761040571082,3.59333909,107990.0,107980.0,0.19548021]
[1761040571315,3.59333909,107990.0,107980.0,0.18621948]
[1761040572187,3.59333909,107990.0,107980.0,0.18721948]
[1761040572391,3.59333909,107990.0,107980.0,0.18621948]
[1761040572830,3.59333909,107990.0,107980.0,0.001]
[1761040572990,3.59333909,107990.0,107980.0,0.18521948]
[1761040573606,3.59333909,107990.0,107980.0,0.18621948]
[1761040580270,4.34147585,107990.0,107980.0,0.001]
[1761040580482,4.36040805,107990.0,107980.0,0.001]
[1761040580686,4.34147585,107990.0,107980.0,0.001]
[1761040580899,4.43129486,107990.0,107980.0,0.001]
[1761040581111,4.46747714,107990.0,107950.0,0.19704862]
[1761040581315,3.59339055,107960.0,107950.0,0.18778541]
[1761040582538,3.59339055,107960.0,107950.0,0.18828253]
[1761040583793,3.59339055,107960.0,107950.0,0.18928253]
[1761040585378,3.40813676,107960.0,107950.0,0.18928253]
[1761040586467,3.59339055,107960.0,107950.0,0.18928253]
[1761040588058,3.63184247,107960.0,107950.0,0.18928253]
[1761040590202,3.4358574,107960.0,107950.0,0.18928253]
[1761040590402,3.63184247,107960.0,107950.0,0.18928253]
[1761040591235,3.44658868,107960.0,107950.0,0.18928253]
[1761040591469,3.03845192,107960.0,107950.0,0.18928253]
[1761040591673,3.44658868,107960.0,107950.0,0.18928253]
[1761040594311,3.03845192,107960.0,107950.0,0.18928253]
[1761040594462,3.63184247,107960.0,107950.0,0.18928253]
[1761040595871,3.44658868,107960.0,107950.0,0.18928253]
[1761040597611,3.63184247,107960.0,107950.0,0.18928253]
[1761040599603,3.22370571,107960.0,107950.0,0.18928253]
[1761040599817,3.63184247,107960.0,107950.0,0.18928253]
[1761040600043,3.44658868,107960.0,107950.0,0.18928253]
[1761040601936,3.63184247,107960.0,107950.0,0.18928253]
[1761040607660,3.44658868,107960.0,107950.0,0.18928253]
[1761040607885,3.63184247,107960.0,107950.0,0.18928253]
[1761040609867,3.03845192,107960.0,107950.0,0.18928253]
[1761040610115,3.44658868,107960.0,107950.0,0.18928253]
[1761040611297,3.63184247,107960.0,107950.0,0.18928253]
[1761040611447,3.44658868,107960.0,107950.0,0.18928253]
[1761040611650,3.63184247,107960.0,107950.0,0.18928253]
[1761040612367,3.44658868,107960.0,107950.0,0.18928253]
[1761040612578,3.63184247,107960.0,107950.0,0.18928253]
[1761040612782,3.44658868,107960.0,107950.0,0.18928253]
[1761040613189,3.03845192,107960.0,107950.0,0.18928253]
[1761040613387,3.44658868,107960.0,107950.0,0.18928253]
[1761040613797,3.63184247,107960.0,107950.0,0.18928253]
[1761040614215,3.22370571,107960.0,107950.0,0.18928253]
[1761040614411,3.63184247,107960.0,107950.0,0.18928253]
[1761040615847,3.44658868,107960.0,107950.0,0.18928253]
[1761040616985,3.44158868,107960.0,107950.0,0.18928253]
[1761040620602,3.62684247,107960.0,107950.0,0.18928253]
[1761040620852,3.62717312,107960.0,107950.0,0.18928253]
[1761040621559,3.62717312,107960.0,107950.0,0.00401158]
[1761040621977,3.96717312,107960.0,107950.0,0.00401158]
[1761040622198,4.14681114,107960.0,107950.0,0.01271131]
[1761040622445,4.05699213,107960.0,107950.0,0.01171131]
[1761040623078,4.05699213,107960.0,107950.0,0.00301158]
[1761040623934,4.02354021,107960.0,107950.0,0.00301158]
[1761040625176,3.9337212,107960.0,107950.0,0.00301158]
[1761040630870,3.73720448,107960.0,107950.0,0.00301158]
[1761040633421,3.5552426,107960.0,107950.0,0.00301158]
[1761040646552,3.14677519,107960.0,107950.0,0.00301158]
[1761040646759,3.5552426,107960.0,107950.0,0.00301158]
[1761040680495,3.64506161,107960.0,107950.0,0.00301158]
[1761040680655,4.17953031,107960.0,107950.0,0.00301158]
[1761040680881,4.58901175,107960.0,107950.0,0.00301158]
[1761040683177,4.49919274,107960.0,107950.0,0.00301158]
[1761040684684,4.5137231,107960.0,107950.0,0.00301158]
[1761040685498,4.52825374,107960.0,107950.0,0.00301158]
[1761040688210,3.30183748,107960.0,107950.0,0.00301158]
[1761040688498,4.0687354,107960.0,107950.0,0.00301158]
[1761040693094,3.87424813,107960.0,107950.0,0.00301158]
[1761040693642,4.447214,107960.0,107950.0,0.00301158]
[1761040695267,4.43268364,107960.0,107950.0,0.00301158]
[1761040697971,4.93130807,107960.0,107950.0,0.00301158]
[1761040698579,4.94583781,107960.0,107950.0,0.00301158]
[1761040698781,4.8560188,107960.0,107950.0,0.00301158]
[1761040700981,4.44721338,107960.0,107950.0,0.00301158]
[1761040701122,4.44721338,107960.0,107950.0,0.03087168]
[1761040709269,4.43268364,107960.0,107950.0,0.03087168]
[1761040710346,4.42268364,107960.0,107950.0,0.03087168]
[1761040712728,4.86767134,107960.0,107950.0,0.03087168]
[1761040713937,4.86767134,107960.0,107950.0,0.00301158]
[1761040715564,4.45886592,107960.0,107950.0,0.00301158]
[1761040720529,4.86767134,107960.0,107950.0,0.00301158]
[1761040724106,4.53767134,107960.0,107950.0,0.00301158]
[1761040727169,4.87767134,107960.0,107950.0,0.00301158]
[1761040727551,4.86667257,107960.0,107950.0,0.00301158]
[1761040731951,4.86667257,107960.0,107950.0,0.00297158]
[1761040738636,4.45786715,107960.0,107950.0,0.00297158]
[1761040739627,4.47239717,107960.0,107950.0,0.00297158]
[1761040740842,4.06343932,107960.0,107950.0,0.00297158]
[1761040742067,3.65478633,107960.0,107950.0,0.00293158]
[1761040742262,4.06343932,107960.0,107950.0,0.00293158]
[1761040746610,3.65478633,107960.0,107950.0,0.00293158]
[1761040746813,4.06343932,107960.0,107950.0,0.00293158]
[1761040748131,3.61860405,107960.0,107950.0,0.00293158]
[1761040748328,3.53978381,107960.0,107950.0,0.00293158]
[1761040748974,3.52525379,107960.0,107950.0,0.00293158]
[1761040749256,3.2131126,107960.0,107950.0,0.00293158]
[1761040749466,3.5531126,107960.0,107950.0,0.00293158]
[1761040751763,0.2131126,107960.0,107950.0,0.59685552]
[1761040752614,0.36785881,107960.0,107950.0,0.59685552]
[1761040752799,0.52525379,107960.0,107950.0,0.59685552]
[1761040753022,0.22762226,107970.0,107960.0,0.18525379]
[1761040753445,0.19976635,107970.0,107960.0,0.18525379]
[1761040753865,0.53976635,107970.0,107960.0,0.18525379]
[1761040754308,0.53976635,107970.0,107960.0,0.59390678]
[1761040754516,0.52523663,107970.0,107960.0,0.59390678]
[1761040754733,0.52523663,107970.0,107960.0,0.18525379]
[1761040754944,0.52523663,107970.0,107960.0,0.20477916]
[1761040755615,0.52523663,107970.0,107960.0,0.18625379]
[1761040755813,0.52523663,107970.0,107960.0,0.001]
[1761040756906,0.93388962,107970.0,107960.0,0.001]
[1761040757334,0.93388962,107970.0,107960.0,0.01952537]
[1761040759093,0.94678146,107970.0,107960.0,0.01952537]
[1761040762461,0.94678146,107970.0,107960.0,0.20477916]
[1761040762662,0.94678146,107970.0,107960.0,0.18625379]
[1761040767093,0.93388962,107970.0,107960.0,0.18625379]
[1761040768432,0.59388962,107970.0,107960.0,0.18625379]
[1761040769052,0.59388962,107970.0,107960.0,0.001]
[1761040769053,0.59370237,107970.0,107960.0,0.001]
[1761040769281,0.59370237,107970.0,107960.0,0.01952537]
[1761040770136,1.00216811,107970.0,107960.0,0.01952537]
[1761040777715,0.18523663,107970.0,107960.0,0.20477916]
[1761040777925,0.59370237,107970.0,107960.0,0.18625379]
[1761040780426,0.59370237,107970.0,107960.0,0.001]
[1761040780638,0.59370237,107970.0,107960.0,0.01952537]
[1761040781691,0.59370237,107970.0,107960.0,0.20477916]
[1761040781903,0.59370237,107970.0,107960.0,0.18625379]
[1761040782117,1.00216811,107970.0,107960.0,0.001]
[1761040782343,1.00216811,107970.0,107960.0,0.01952537]
[1761040787045,1.34216811,107970.0,107960.0,0.01952537]
[1761040790115,1.34216811,107970.0,107960.0,0.20477916]
[1761040790326,1.34216811,107970.0,107960.0,0.18625379]
[1761040794851,1.34216811,107970.0,107960.0,0.001]
[1761040795061,1.34216811,107970.0,107960.0,0.01952537]
[1761040797410,1.15693148,107970.0,107960.0,0.01952537]
[1761040797621,0.74846574,107970.0,107960.0,0.01952537]
[1761040798012,0.93370237,107970.0,107960.0,0.01952537]
[1761040800945,0.93370237,107970.0,107960.0,0.20477916]
[1761040801158,0.61745542,107990.0,107970.0,0.18523663]
[1761040801387,0.18520238,107990.0,107980.0,0.20374142]
[1761040801599,0.59366812,107990.0,107980.0,0.01852194]
[1761040802694,0.59366812,107990.0,107980.0,0.20374142]
[1761040802914,0.59345721,107990.0,107980.0,0.20374142]
[1761040804338,0.59345721,107990.0,107980.0,0.01952194]
[1761040804580,0.62130554,107990.0,107980.0,0.20474142]
[1761040804812,0.62130554,107990.0,107980.0,0.18621948]
[1761040806142,0.62130554,107990.0,107980.0,0.001]
[1761040807001,1.36956037,107990.0,107980.0,0.001]
[1761040807218,4.36956037,107990.0,107980.0,0.001]
[1761040807678,4.45937938,107990.0,107980.0,0.001]
[1761040807894,4.90381649,107990.0,107980.0,0.001]
[1761040809220,0.18525379,107960.0,107950.0,0.00293158]
[1761040809444,4.75001828,107960.0,107950.0,0.00293158]
[1761040810124,4.91033804,107960.0,107950.0,0.00293158]
[1761040810346,4.83983729,107960.0,107950.0,0.00293158]
[1761040810565,4.86769731,107960.0,107950.0,0.00364537]
[1761040810792,4.45944248,107960.0,107950.0,0.00364537]
[1761040811232,4.45944248,107960.0,107950.0,0.00264537]
[1761040812128,4.45944248,107960.0,107950.0,0.00250118]
[1761040813528,4.47397189,107960.0,107950.0,0.00250118]
[1761040815522,4.45944248,107960.0,107950.0,0.00250118]
[1761040821594,3.64293282,107960.0,107950.0,0.00250118]
[1761040821829,4.36962347,107960.0,107950.0,0.00250118]
[1761040828247,3.55311381,107960.0,107950.0,0.00250118]
[1761040828481,4.36962347,107960.0,107950.0,0.00250118]
[1761040831540,0.02786002,107960.0,107950.0,0.18777213]
[1761040831738,0.42278417,107970.0,107950.0,0.18777213]
[1761040831739,0.60802742,107970.0,107960.0,0.18525379]
[1761040831962,0.76278417,107970.0,107960.0,0.18525379]
[1761040832174,0.96134647,107970.0,107960.0,0.18525379]
[1761040832383,0.96134647,107970.0,107950.0,0.18777213]
[1761040832605,0.18525379,107960.0,107950.0,0.27759114]
[1761040833031,0.59350862,107960.0,107950.0,0.27859114]
[1761040833240,0.59350862,107960.0,107950.0,0.27759114]
[1761040834026,0.59350862,107960.0,107950.0,0.27859114]
[1761040835496,0.59350862,107960.0,107950.0,0.27959114]
[1761040837971,1.00176345,107960.0,107950.0,0.00450118]
[1761040839269,0.59350862,107960.0,107950.0,0.20829922]
[1761040839473,0.59350862,107960.0,107950.0,0.18777213]
[1761040839691,0.59350862,107960.0,107950.0,0.20629922]
[1761040839900,0.59350862,107960.0,107950.0,0.02102827]
[1761040840107,0.59350862,107960.0,107950.0,0.00250118]
[1761040840319,1.00176345,107960.0,107950.0,0.00250118]
[1761040841406,1.00176345,107960.0,107950.0,0.20629922]
[1761040841623,0.59350862,107960.0,107950.0,0.18777213]
[1761040841850,0.59350862,107960.0,107950.0,0.18877213]
[1761040842084,0.18525379,107960.0,107950.0,0.18877213]
[1761040842298,0.59350862,107960.0,107950.0,0.18877213]
[1761040845153,0.96134711,107970.0,107960.0,0.18525379]
[1761040849862,0.96134711,107970.0,107960.0,0.18625379]
[1761040852792,0.36785501,107970.0,107960.0,0.18625379]
[1761040853011,0.52523663,107970.0,107960.0,0.18625379]
[1761040853417,0.34,107970.0,107960.0,0.18625379]
[1761040853618,0.52523663,107970.0,107960.0,0.18625379]
[1761040856541,0.93349146,107970.0,107960.0,0.18625379]
[1761040862783,0.93365751,107970.0,107960.0,0.001]
[1761040862985,0.93365751,107970.0,107960.0,0.20477916]
[1761040863237,0.93365751,107970.0,107960.0,0.18625379]
[1761040864095,0.52523663,107970.0,107960.0,0.18625379]
[1761040867099,0.34,107970.0,107960.0,0.18625379]
[1761040868653,0.63078357,107980.0,107960.0,0.18625379]
[1761040868811,0.60293151,107980.0,107960.0,0.18625379]
[1761040869031,0.94293151,107980.0,107970.0,0.01857]
[1761040869235,0.60293151,107980.0,107960.0,0.18625379]
[1761040869793,0.94293151,107980.0,107970.0,0.18523663]
[1761040870179,0.94293151,107980.0,107960.0,0.18525379]
[1761040870386,0.94293151,107980.0,107960.0,0.20377916]
[1761040870801,0.18523663,107970.0,107960.0,0.20377916]
[1761040871733,0.94293151,107980.0,107960.0,0.20377916]
[1761040873500,0.94293151,107980.0,107960.0,0.20477916]
[1761040873722,0.94293151,107980.0,107960.0,0.18625379]
[1761040874568,0.94293151,107980.0,107960.0,0.18525379]
[1761040874749,0.94293151,107980.0,107960.0,0.20377916]
[1761040874986,0.18523663,107970.0,107960.0,0.20377916]
[1761040876437,0.94293151,107980.0,107960.0,0.20377916]
[1761040877236,0.94293151,107980.0,107960.0,0.20477916]
[1761040877440,0.94293151,107980.0,107960.0,0.18625379]
[1761040877860,0.18523663,107970.0,107960.0,0.18525379]
[1761040878005,0.18523663,107970.0,107960.0,0.20377916]
[1761040880835,0.94293151,107980.0,107960.0,0.20377916]
[1761040881638,0.94293151,107980.0,107960.0,0.20477916]
[1761040881849,0.02785206,107970.0,107960.0,0.18625379]
[1761040882249,0.02785206,107970.0,107960.0,0.18525379]
[1761040882472,0.21308869,107970.0,107960.0,0.20377916]
[1761040883559,0.02905483,108000.0,107980.0,0.18520289]
[1761040883764,0.18518583,108000.0,107990.0,0.18520233]
[1761040883978,3.0,108010.0,107990.0,0.20372256]
[1761040884204,0.02784423,108000.0,107990.0,0.20372256]
[1761040884409,0.36784423,108000.0,107990.0,0.20372256]
[1761040884621,0.55302941,108000.0,107990.0,0.20372256]
[1761040886165,0.55302941,108000.0,107990.0,0.20472256]
[1761040886379,0.55302941,108000.0,107990.0,0.18620233]
[1761040888812,0.36784423,108000.0,107990.0,0.18620233]
[1761040889689,0.36784423,108000.0,107990.0,0.27602134]
[1761040889936,0.02784423,108000.0,107990.0,0.27602134]
[1761040891519,0.02784423,108000.0,107990.0,0.27702134]
[1761040892159,0.02784423,108000.0,107990.0,0.27602134]
[1761040892585,0.02784423,108000.0,107990.0,0.27802134]
[1761040894281,0.02784423,108000.0,107990.0,0.27502134]
[1761040894658,0.02784423,108000.0,107990.0,0.27602134]
[1761040895777,0.02784423,108000.0,107990.0,0.27702134]
[1761040900382,0.43626511,108000.0,107990.0,0.27702134]
[1761040901096,1.36987117,108000.0,107990.0,0.002]
[1761040901356,4.36987117,108000.0,107990.0,0.002]
[1761040901987,4.36987117,108000.0,107990.0,0.001]
[1761040902195,0.52521485,107990.0,107970.0,0.19448967]
[1761040902410,0.52521485,107990.0,107980.0,0.08981901]
[1761040903051,0.55306125,107990.0,107980.0,0.08981901]
[1761040903280,0.55306125,107990.0,107970.0,4.969e-05]
[1761040903281,0.18521948,107980.0,107970.0,4.969e-05]
[1761040903485,0.59364036,107980.0,107970.0,4.969e-05]
[1761040903732,0.59364036,107980.0,107970.0,0.00104969]
[1761040903949,0.93364036,107980.0,107970.0,0.00104969]
[1761040904170,3.96148937,107980.0,107970.0,4.969e-05]
[1761040905501,3.55306849,107980.0,107970.0,4.969e-05]
[1761040905717,3.96148937,107980.0,107970.0,4.969e-05]
[1761040905932,3.96148937,107980.0,107970.0,0.00104969]
[1761040906150,4.36991025,107980.0,107970.0,0.00104969]
[1761040906366,3.96148937,107980.0,107970.0,4.969e-05]
[1761040906644,3.77626989,107980.0,107970.0,4.969e-05]
[1761040906867,3.96148937,107980.0,107970.0,0.00104969]
[1761040917548,3.55306849,107980.0,107970.0,0.00104969]
[1761040917754,3.96148937,107980.0,107970.0,0.00104969]
[1761040919042,3.96149222,107980.0,107970.0,0.00104969]
[1761040922931,4.36990345,107980.0,107970.0,0.00104969]
[1761040924713,3.55306849,107980.0,107970.0,0.00104969]
[1761040924922,4.36990345,107980.0,107970.0,0.00104969]
[1761040926907,4.77832093,107980.0,107970.0,0.00104969]
[1761040928238,4.77832093,107980.0,107970.0,4.969e-05]
[1761040928622,4.77832093,107980.0,107970.0,0.00134525]
[1761040930872,4.86813994,107980.0,107970.0,0.00134525]
[1761040931073,4.88266772,107980.0,107970.0,0.00134525]
[1761040936755,4.54266772,107980.0,107970.0,0.00134525]
[1761040939025,4.13425024,107980.0,107970.0,0.00134525]
[1761040939616,3.97987686,107980.0,107970.0,0.00134525]
[1761040939751,4.38829434,107980.0,107970.0,0.00134525]
[1761040940754,4.23181893,107980.0,107970.0,0.00134525]
[1761040944034,4.21729115,107980.0,107970.0,0.00134525]
[1761040947505,4.23181882,107980.0,107970.0,0.00134525]
[1761040951508,4.21729115,107980.0,107970.0,0.00134525]
[1761040952140,3.71905466,107980.0,107970.0,0.00134525]
[1761040953735,3.5182206,107980.0,107970.0,0.00134525]
[1761040953960,4.02990345,107980.0,107970.0,0.00134525]
[1761040958148,4.43832093,107980.0,107970.0,0.00134525]
[1761040958440,4.02990345,107980.0,107970.0,0.00134525]
[1761040963061,4.52813994,107980.0,107970.0,0.00134525]
[1761040963252,4.86813994,107980.0,107970.0,0.00134525]
[1761040967656,4.45972246,107980.0,107970.0,0.00134525]
[1761040970264,4.90432222,107980.0,107970.0,0.00134525]
[1761040975152,4.49590474,107980.0,107970.0,0.00134525]
[1761040975809,4.90432222,107980.0,107970.0,0.00134525]
[1761040981171,4.99414123,107980.0,107970.0,0.00134525]
[1761040982773,3.76888879,107980.0,107970.0,1e-08]
[1761040982983,4.61107493,107980.0,107970.0,1e-08]
[1761040983169,4.63308997,107980.0,107970.0,1e-08]
[1761040983415,4.65308995,107980.0,107970.0,1e-08]
[1761040983848,5.06178975,107980.0,107970.0,1e-08]
[1761040984280,5.06278975,107980.0,107970.0,1e-08]
[1761040984493,5.06178975,107980.0,107970.0,1e-08]
[1761040986014,5.06278975,107980.0,107970.0,1e-08]
[1761040986490,5.06178975,107980.0,107970.0,1e-08]
[1761040986693,5.06378975,107980.0,107970.0,1e-08]
[1761040987351,0.18533963,107910.0,107900.0,0.17162304]
[1761040987580,0.18533963,107910.0,107900.0,0.17212016]
[1761040988001,0.18533798,107920.0,107900.0,0.19313641]
[1761040988217,0.18533798,107920.0,107900.0,0.19065584]
[1761040988632,0.18533798,107920.0,107910.0,0.18533963]
[1761040988862,0.18533798,107920.0,107900.0,0.17212016]
[1761040989067,0.18533798,107920.0,107900.0,0.19992368]
[1761040989504,0.18533798,107920.0,107900.0,0.20092368]
[1761040990153,0.19460064,107930.0,107910.0,0.18533963]
[1761040990356,0.18532246,107920.0,107910.0,0.18533963]
[1761040991402,0.20566377,107930.0,107920.0,0.18532246]
[1761040992382,0.01106313,107930.0,107920.0,0.18532246]
[1761040992582,0.18532549,107940.0,107920.0,0.2038547]
[1761040992808,0.18530529,107930.0,107920.0,0.2038547]
[1761040994274,0.18530529,107930.0,107920.0,0.2048547]
[1761040994475,0.18530529,107930.0,107920.0,0.18632246]
[1761040994711,0.18530529,107930.0,107920.0,0.18809396]
[1761040994911,0.18530529,107930.0,107920.0,0.18909396]
[1761040995118,0.1961782,107940.0,107920.0,0.18909396]
[1761040995333,0.1961782,107940.0,107920.0,0.18732246]
[1761040995537,0.1961782,107940.0,107930.0,0.18530529]
[1761040995937,0.01085271,107940.0,107930.0,0.20383581]
[1761040996133,0.18528812,107940.0,107930.0,0.20383581]
[1761040996618,0.020473,107950.0,107930.0,0.20383581]
[1761040996789,0.19648805,107950.0,107940.0,0.18528812]
[1761040997852,0.19648805,107950.0,107940.0,0.18578524]
[1761040998052,0.19648805,107950.0,107940.0,0.18678524]
[1761040998679,0.19648805,107950.0,107940.0,0.00149712]
[1761040999531,0.19648805,107950.0,107940.0,0.00249712]
[1761041000015,0.60518785,107950.0,107940.0,0.00249712]
[1761041002248,0.60518785,107950.0,107940.0,0.00149712]
[1761041002650,0.60518785,107950.0,107940.0,0.00355982]
[1761041004102,0.60518785,107950.0,107940.0,0.00255982]
[1761041013284,0.01120946,107950.0,107940.0,0.00255982]
[1761041013494,3.0,107960.0,107950.0,0.18525536]
[1761041013898,0.19603718,107970.0,107950.0,0.18525536]
[1761041014108,0.18525379,107960.0,107950.0,0.18525536]
[1761041014515,0.18525379,107960.0,107950.0,0.18527095]
[1761041014730,0.18525379,107960.0,107950.0,0.20379804]